fUST/lending_fUST_20240928
["ID","MTS","AMOUNT","RATE_DAILY","PERIOD"]
[339349336,1727458245240,-153.0,0.00019847,2]
[339349338,1727458245250,-153.0,0.00019847,2]
[339349351,1727458245361,-153.0,0.00019847,2]
[339349353,1727458245372,-312.0,0.00019847,2]
[339349355,1727458245382,-312.0,0.00019847,2]
[339349357,1727458245392,-312.0,0.00019847,2]
[339349359,1727458245401,-312.0,0.00019847,2]
[339349361,1727458245411,-312.0,0.00019847,2]
[339349363,1727458245420,-312.0,0.00019847,2]
[339349365,1727458245430,-312.0,0.00019847,2]
[339349367,1727458245439,-312.0,0.00019847,2]
[339349369,1727458245448,-312.0,0.00019847,2]
[339349371,1727458245458,-312.0,0.00019847,2]
[339349373,1727458245467,-312.0,0.00019847,2]
[339349375,1727458245477,-312.0,0.00019847,2]
[339349377,1727458245486,-312.0,0.00019847,2]
[339349378,1727458245496,-312.0,0.00019847,2]
[339349381,1727458245506,-312.0,0.00019847,2]
[339349383,1727458245516,-151.0,0.00019847,2]
[339349385,1727458245526,-276.165417,0.00019847,2]
[339349387,1727458245535,-197.0,0.00019854,2]
[339349389,1727458245556,-197.0,0.00019854,2]
[339349392,1727458245569,-197.0,0.00019854,2]
[339349395,1727458245579,-197.0,0.00019854,2]
[339349397,1727458245589,-197.0,0.00019854,2]
[339349399,1727458245599,-197.0,0.00019854,2]
[339349401,1727458245609,-197.0,0.00019854,2]
[339349403,1727458245621,-197.0,0.00019854,2]
[339349405,1727458245630,-197.0,0.00019854,2]
[339349407,1727458245641,-197.0,0.00019854,2]
[339349409,1727458245651,-197.0,0.00019854,2]
[339349411,1727458245661,-197.0,0.00019854,2]
[339349413,1727458245671,-197.0,0.00019854,2]
[339349416,1727458245681,-197.0,0.00019854,2]
[339349418,1727458245691,-197.0,0.00019854,2]
[339349420,1727458245700,-197.0,0.00019854,2]
[339349422,1727458245710,-197.0,0.00019854,2]
[339349424,1727458245720,-197.0,0.00019854,2]
[339349426,1727458245730,-197.0,0.00019854,2]
[339349428,1727458245741,-197.0,0.00019854,2]
[339349430,1727458245750,-197.0,0.00019854,2]
[339349433,1727458245760,-197.0,0.00019854,2]
[339349434,1727458245770,-197.0,0.00019854,2]
[339349437,1727458245782,-197.0,0.00019854,2]
[339349439,1727458245792,-197.0,0.00019854,2]
[339349441,1727458245802,-197.0,0.00019854,2]
[339349443,1727458245811,-197.0,0.00019854,2]
[339349445,1727458245821,-197.0,0.00019854,2]
[339349447,1727458245830,-206.0,0.00019854,2]
[339349449,1727458245840,-206.0,0.00019854,2]
[339349451,1727458245849,-206.0,0.00019854,2]
[339349453,1727458245859,-206.0,0.00019854,2]
[339349455,1727458245870,-153.0,0.00019854,2]
[339349457,1727458245879,-153.0,0.00019854,2]
[339349458,1727458245888,-153.0,0.00019854,2]
[339349460,1727458245897,-153.0,0.00019854,2]
[339349462,1727458245907,-153.0,0.00019854,2]
[339349465,1727458245920,-151.0,0.00019854,2]
[339349467,1727458245930,-151.0,0.00019854,2]
[339349469,1727458245939,-151.0,0.00019854,2]
[339349471,1727458245950,-151.0,0.00019854,2]
[339349473,1727458245963,-151.0,0.00019854,2]
[339349475,1727458245972,-151.0,0.00019854,2]
[339349477,1727458245981,-151.0,0.00019854,2]
[339349479,1727458245994,-151.0,0.00019854,2]
[339349481,1727458246004,-151.0,0.00019854,2]
[339349484,1727458246016,-151.0,0.00019854,2]
[339349486,1727458246027,-151.0,0.00019854,2]
[339349488,1727458246037,-303.84991,0.00019854,2]
[339349490,1727458246046,-303.84991,0.00019854,2]
[339349492,1727458246057,-153.0,0.00019875,2]
[339349494,1727458246067,-153.0,0.00019875,2]
[339349496,1727458246079,-153.0,0.00019875,2]
[339349499,1727458246091,-153.0,0.00019875,2]
[339349501,1727458246102,-306.0,0.00019875,2]
[339349503,1727458246113,-260.5238295,0.00019875,2]
[339349505,1727458246125,-151.0,0.000199,2]
[339349507,1727458246137,-6595.20483755,0.00019917,2]
[339349509,1727458246147,-1000.0,0.0001994,2]
[339349511,1727458246157,-600.0,0.0001995,3]
[339349514,1727458246170,-1000.0,0.00019962,2]
[339349516,1727458246179,-500.50451328,0.00019973,2]
[339349518,1727458246190,-500.0,0.00019973,2]
[339349520,1727458246200,-500.0,0.00019973,2]
[339349522,1727458246210,-500.39443641,0.00019973,2]
[339349524,1727458246220,-500.0,0.00019973,2]
[339349526,1727458246229,-500.13969444,0.00019973,2]
[339349528,1727458246238,-500.0,0.00019973,2]
[339349530,1727458246248,-2128.39758483,0.0001998,3]
[339349532,1727458246257,-1000.0,0.0001999,2]
[339349534,1727458246267,-2128.39758483,0.0001999,3]
[339349536,1727458246277,-78504.32742063,0.0001999,2]
[339349538,1727458246287,-151.0,0.0001999,2]
[339349540,1727458246296,-207.366257,0.0001999,2]
[339349542,1727458246306,-207.366257,0.0001999,2]
[339349544,1727458246315,-172.1,0.00019992,2]
[339349546,1727458246325,-160.0,0.00019999,2]
[339349548,1727458246335,-700.13,0.0002,2]
[339349550,1727458246344,-200.0,0.0002,2]
[339349552,1727458246354,-491.14,0.0002,2]
[339349555,1727458246363,-500.0,0.0002,2]
[339349557,1727458246376,-835.3,0.0002,2]
[339349559,1727458246386,-500.0,0.0002,2]
[339349561,1727458246396,-500.0,0.0002,2]
[339349563,1727458246406,-500.0,0.0002,2]
[339349565,1727458246416,-900.04,0.0002,2]
[339349567,1727458246427,-500.0,0.0002,2]
[339349569,1727458246439,-1233.33,0.0002,2]
[339349571,1727458246451,-500.0,0.0002,2]
[339349574,1727458246461,-500.0,0.0002,2]
[339349576,1727458246470,-500.0,0.0002,2]
[339349578,1727458246479,-16292.9804044,0.0002,2]
[339349579,1727458246489,-717.31,0.0002,2]
[339349582,1727458246499,-500.0,0.0002,2]
[339349584,1727458246510,-500.0,0.0002,2]
[339349586,1727458246519,-2196.88,0.0002,2]
[339349587,1727458246529,-810.27,0.0002,2]
[339349589,1727458246538,-589.33,0.0002,2]
[339349591,1727458246548,-500.0,0.0002,2]
[339349593,1727458246557,-500.0,0.0002,2]
[339349594,1727458246567,-11206.77,0.0002,2]
[339349595,1727458246576,-2111.36,0.0002,2]
[339349596,1727458246587,-589.64,0.0002,2]
[339349597,1727458246596,-471.06494316,0.0002,2]
[339349598,1727458246606,-154.286904,0.0002,2]
[339349601,1727458246620,-154.286904,0.0002,2]
[339349603,1727458246629,-85976.09351408,0.0002,2]
[339349605,1727458246638,-608.0,0.0002,2]
[339349607,1727458246648,-157.766151,0.0002,2]
[339349609,1727458246657,-568.28,0.0002,2]
[339349611,1727458246667,-748.63,0.0002,2]
[339349613,1727458246677,-500.0,0.0002,2]
[339349615,1727458246686,-500.0,0.0002,2]
[339349617,1727458246695,-959.23,0.0002,2]
[339349619,1727458246705,-500.0,0.0002,2]
[339349621,1727458246714,-383.229139,0.0002,2]
[339349623,1727458246724,-151.19763648,0.0002,2]
[339349625,1727458246733,-383.229139,0.0002,2]
[339349627,1727458246743,-1181.15,0.0002,2]
[339349629,1727458246753,-500.0,0.0002,2]
[339349631,1727458246763,-600.0,0.00020068,2]
[339349633,1727458246772,-244.6405,0.00020072,2]
[339349635,1727458246781,-153.0,0.00020082,2]
[339349637,1727458246791,-153.0,0.00020082,2]
[339349639,1727458246800,-1000.0,0.000201,2]
[339349641,1727458246810,-177.064664,0.000201,2]
[339349643,1727458246820,-2128.39758483,0.00020163,3]
[339349645,1727458246829,-151.0,0.00020163,2]
[339349647,1727458246838,-151.0,0.00020163,2]
[339349649,1727458246847,-182.737816,0.00020163,2]
[339349651,1727458246857,-182.737816,0.00020163,2]
[339349653,1727458246867,-12081.52708458,0.00020172,2]
[339349655,1727458246876,-410.45958841,0.00020172,2]
[339349657,1727458246885,-151.0,0.00020172,2]
[339349659,1727458246895,-207.366257,0.00020172,2]
[339349661,1727458246904,-207.366257,0.00020172,2]
[339349663,1727458246916,-51830.09190217,0.00020173,2]
[339349665,1727458246926,-265.4086,0.00020173,2]
[339349667,1727458246935,-265.4086,0.00020173,2]
[339349669,1727458246945,-151.0,0.00020173,2]
[339349671,1727458246955,-151.0,0.00020173,2]
[339349673,1727458246964,-151.0,0.00020173,2]
[339349675,1727458246974,-151.0,0.00020173,2]
[339349677,1727458246985,-151.0,0.00020173,2]
[339349679,1727458246996,-151.0,0.00020187,2]
[339349681,1727458247005,-600.0,0.00020188,3]
[339349683,1727458247015,-600.0,0.00020188,3]
[339349685,1727458247025,-151.0,0.00020207,2]
[339349687,1727458247034,-151.0,0.00020207,2]
[339349689,1727458247043,-182.737816,0.00020207,2]
[339349691,1727458247053,-182.737816,0.00020207,2]
[339349693,1727458247062,-600.0,0.00020217,3]
[339349695,1727458247071,-600.0,0.00020217,3]
[339349697,1727458247081,-600.0,0.00020217,3]
[339349699,1727458247090,-600.0,0.00020217,3]
[339349701,1727458247099,-600.0,0.00020217,3]
[339349703,1727458247108,-600.0,0.00020217,3]
[339349706,1727458247119,-151.0,0.00020217,2]
[339349708,1727458247129,-2128.39758483,0.00020263,3]
[339349710,1727458247139,-151.0,0.00020263,2]
[339349712,1727458247148,-151.0,0.00020263,2]
[339349714,1727458247159,-182.737816,0.00020263,2]
[339349716,1727458247168,-182.737816,0.00020263,2]
[339349718,1727458247178,-151.0,0.00020263,2]
[339349720,1727458247188,-151.0,0.00020263,2]
[339349722,1727458247198,-151.0,0.00020263,2]
[339349724,1727458247207,-151.0,0.00020263,2]
[339349726,1727458247217,-303.84991,0.00020263,2]
[339349728,1727458247226,-303.84991,0.00020263,2]
[339349730,1727458247236,-700.13,0.00020273,2]
[339349732,1727458247246,-200.0,0.00020273,2]
[339349734,1727458247255,-500.0,0.00020273,2]
[339349736,1727458247265,-835.3,0.00020273,2]
[339349738,1727458247274,-500.0,0.00020273,2]
[339349741,1727458247286,-500.0,0.00020273,2]
[339349743,1727458247295,-187.06272016,0.00020273,2]
[339349745,1727458247305,-900.04,0.00020273,2]
[339349747,1727458247314,-500.0,0.00020273,2]
[339349749,1727458247324,-1233.33,0.00020273,2]
[339349751,1727458247333,-500.0,0.00020273,2]
[339349753,1727458247344,-482.4761541,0.00020273,2]
[339349755,1727458247354,-500.0,0.00020273,2]
[339349757,1727458247363,-717.31,0.00020273,2]
[339349759,1727458247379,-500.0,0.00020273,2]
[339349761,1727458247388,-500.0,0.00020273,2]
[339349763,1727458247397,-2196.88,0.00020273,2]
[339349765,1727458247406,-810.27,0.00020273,2]
[339349767,1727458247417,-589.33,0.00020273,2]
[339349769,1727458247426,-500.0,0.00020273,2]
[339349771,1727458247435,-11206.77,0.00020273,2]
[339349773,1727458247446,-2111.36,0.00020273,2]
[339349775,1727458247456,-589.64,0.00020273,2]
[339349778,1727458247467,-748.63,0.00020273,2]
[339349780,1727458247477,-500.0,0.00020273,2]
[339349782,1727458247487,-500.0,0.00020273,2]
[339349784,1727458247497,-959.23,0.00020273,2]
[339349786,1727458247506,-150.0,0.00020273,2]
[339349788,1727458247516,-500.0,0.00020273,2]
[339349790,1727458247526,-1181.15,0.00020273,2]
[339349793,1727458247548,-500.0,0.00020273,2]
[339349795,1727458247558,-26777.72604128,0.00020277,2]
[339349797,1727458247567,-154.286904,0.00020277,2]
[339349799,1727458247577,-154.286904,0.00020277,2]
[339349801,1727458247586,-383.229139,0.00020277,2]
[339349803,1727458247596,-383.229139,0.00020277,2]
[339349805,1727458247606,-150.0,0.000203,2]
[339349807,1727458247617,-582.0,0.000203,2]
[339349809,1727458247627,-153.0,0.00020329,2]
[339349811,1727458247636,-153.0,0.00020329,2]
[339349813,1727458247646,-153.0,0.00020329,2]
[339349815,1727458247656,-2128.39758483,0.00020363,3]
[339349817,1727458247666,-4256.79516966,0.00020367,3]
[339349819,1727458247676,-500.0,0.00020373,2]
[339349821,1727458247685,-500.0,0.00020373,2]
[339349823,1727458247695,-500.0,0.00020373,2]
[339349825,1727458247705,-500.0,0.00020373,2]
[339349827,1727458247714,-500.0,0.00020373,2]
[339349829,1727458247724,-500.0,0.00020373,2]
[339349831,1727458247733,-160.0,0.00020376,2]
[339349833,1727458247743,-127592.44402977,0.00020377,2]
[339349835,1727458247752,-151.0,0.00020377,2]
[339349837,1727458247763,-151.0,0.00020377,2]
[339349839,1727458247773,-265.4086,0.00020377,2]
[339349841,1727458247782,-265.408604,0.00020377,2]
[339349843,1727458247791,-151.0,0.00020377,2]
[339349845,1727458247801,-177.182599,0.00020377,2]
[339349847,1727458247810,-177.182599,0.00020377,2]
[339349849,1727458247819,-182.737816,0.00020377,2]
[339349851,1727458247829,-182.737816,0.00020377,2]
[339349852,1727458247839,-151.0,0.00020377,2]
[339349869,1727458247986,-151.0,0.00020377,2]
[339349871,1727458247997,-151.0,0.00020377,2]
[339349873,1727458248007,-151.0,0.00020377,2]
[339349875,1727458248017,-151.0,0.00020377,2]
[339349877,1727458248027,-151.0,0.00020377,2]
[339349879,1727458248036,-151.0,0.00020377,2]
[339349881,1727458248046,-699.490362,0.00020377,2]
[339349883,1727458248055,-699.490362,0.00020377,2]
[339349885,1727458248065,-151.0,0.00020377,2]
[339349887,1727458248074,-175.64599,0.00020377,2]
[339349889,1727458248084,-175.64599,0.00020377,2]
[339349891,1727458248093,-151.0,0.00020377,2]
[339349893,1727458248102,-151.0,0.00020377,2]
[339349895,1727458248112,-151.0,0.00020377,2]
[339349897,1727458248123,-151.0,0.00020377,2]
[339349899,1727458248133,-151.0,0.00020377,2]
[339349901,1727458248142,-151.0,0.00020377,2]
[339349903,1727458248152,-213.088741,0.00020377,2]
[339349906,1727458248163,-760.562918,0.00020377,2]
[339349908,1727458248173,-151.0,0.00020377,2]
[339349910,1727458248183,-213.088741,0.00020377,2]
[339349912,1727458248193,-151.0,0.00020377,2]
[339349914,1727458248203,-151.0,0.00020377,2]
[339349916,1727458248213,-151.0,0.00020377,2]
[339349918,1727458248222,-151.0,0.00020377,2]
[339349920,1727458248232,-151.0,0.00020377,2]
[339349922,1727458248242,-641.54091,0.00020377,2]
[339349924,1727458248251,-151.0,0.00020377,2]
[339349926,1727458248261,-641.54091,0.00020377,2]
[339349928,1727458248270,-154.286904,0.00020377,2]
[339349930,1727458248280,-154.286904,0.00020377,2]
[339349933,1727458248289,-151.0,0.00020377,2]
[339349935,1727458248299,-151.0,0.00020377,2]
[339349937,1727458248308,-151.0,0.00020377,2]
[339349939,1727458248319,-151.0,0.00020377,2]
[339349941,1727458248328,-151.0,0.00020377,2]
[339349943,1727458248338,-303.84991,0.00020377,2]
[339349945,1727458248348,-303.84991,0.00020377,2]
[339349947,1727458248357,-151.0,0.00020377,2]
[339349949,1727458248368,-383.229139,0.00020377,2]
[339349951,1727458248377,-383.229139,0.00020377,2]
[339349953,1727458248387,-207.366257,0.00020377,2]
[339349955,1727458248398,-153.0,0.00020383,2]
[339349957,1727458248409,-465.0201612,0.00020421,2]
[339349959,1727458248420,-172.1,0.00020447,2]
[339349962,1727458248431,-6595.20483755,0.00020513,2]
[339349964,1727458248440,-1000.0,0.00020521,2]
[339349966,1727458248451,-1000.0,0.00020521,2]
[339349968,1727458248461,-500.84471371,0.00020521,2]
[339349970,1727458248470,-1000.0,0.00020521,2]
[339349972,1727458248480,-500.0,0.00020534,2]
[339349974,1727458248490,-500.0,0.00020534,2]
[339349976,1727458248500,-150.0,0.00020545,2]
[339349978,1727458248509,-700.13,0.00020547,2]
[339349980,1727458248520,-200.0,0.00020547,2]
[339349982,1727458248529,-500.0,0.00020547,2]
[339349984,1727458248542,-835.3,0.00020547,2]
[339349986,1727458248554,-178.20980002,0.00020547,2]
[339349988,1727458248564,-900.04,0.00020547,2]
[339349991,1727458248574,-500.0,0.00020547,2]
[339349993,1727458248583,-1233.33,0.00020547,2]
[339349995,1727458248594,-500.0,0.00020547,2]
[339349997,1727458248605,-500.0,0.00020547,2]
[339349999,1727458248615,-500.0,0.00020547,2]
[339350001,1727458248627,-500.0,0.00020547,2]
[339350003,1727458248637,-2196.88,0.00020547,2]
[339350005,1727458248647,-810.27,0.00020547,2]
[339350007,1727458248656,-589.33,0.00020547,2]
[339350009,1727458248666,-500.0,0.00020547,2]
[339350011,1727458248676,-11206.77,0.00020547,2]
[339350013,1727458248685,-2111.36,0.00020547,2]
[339350015,1727458248695,-589.64,0.00020547,2]
[339350018,1727458248704,-748.63,0.00020547,2]
[339350020,1727458248714,-500.0,0.00020547,2]
[339350022,1727458248724,-500.0,0.00020547,2]
[339350024,1727458248734,-959.23,0.00020547,2]
[339350026,1727458248744,-1181.15,0.00020547,2]
[339350028,1727458248753,-500.0,0.00020547,2]
[339350030,1727458248763,-153.0,0.0002063,2]
[339350032,1727458248772,-1000.0,0.00020754,2]
[339350034,1727458248781,-151.0,0.0002077,2]
[339350036,1727458248792,-151.0,0.0002077,2]
[339350038,1727458248803,-5945.55133203,0.00020772,2]
[339350055,1727458248950,-649.65350555,0.00020772,2]
[339350057,1727458248961,-1000.0,0.0002079,2]
[339350059,1727458248971,-1000.0,0.00020795,2]
[339350061,1727458248980,-1000.0,0.00020803,2]
[339350063,1727458248990,-600.0,0.0002082,3]
[339350065,1727458249000,-600.0,0.0002082,3]
[339350067,1727458249009,-1024.45409967,0.0002082,3]
[339350069,1727458249019,-700.13,0.00020821,2]
[339350071,1727458249028,-200.0,0.00020821,2]
[339350073,1727458249037,-500.0,0.00020821,2]
[339350075,1727458249047,-835.3,0.00020821,2]
[339350077,1727458249056,-900.04,0.00020821,2]
[339350079,1727458249065,-500.0,0.00020821,2]
[339350081,1727458249074,-1233.33,0.00020821,2]
[339350083,1727458249084,-500.0,0.00020821,2]
[339350085,1727458249093,-500.0,0.00020821,2]
[339350087,1727458249102,-2196.88,0.00020821,2]
[339350089,1727458249111,-810.27,0.00020821,2]
[339350091,1727458249122,-589.33,0.00020821,2]
[339350093,1727458249131,-500.0,0.00020821,2]
[339350095,1727458249140,-11206.77,0.00020821,2]
[339350097,1727458249150,-2111.36,0.00020821,2]
[339350099,1727458249160,-589.64,0.00020821,2]
[339350101,1727458249169,-748.63,0.00020821,2]
[339350103,1727458249179,-500.0,0.00020821,2]
[339350106,1727458249191,-500.0,0.00020821,2]
[339350108,1727458249203,-959.23,0.00020821,2]
[339350110,1727458249213,-1181.15,0.00020821,2]
[339350112,1727458249223,-500.0,0.00020821,2]
[339350114,1727458249233,-419.50715,0.00020822,2]
[339350116,1727458249243,-600.0,0.00020878,3]
[339350118,1727458249253,-600.0,0.00020878,3]
[339350120,1727458249262,-151.0,0.00020899,2]
[339350122,1727458249272,-151.0,0.00020899,2]
[339350124,1727458249281,-600.0,0.00020899,3]
[339350126,1727458249290,-474.81864683,0.00020899,3]
[339350128,1727458249300,-600.0,0.00020899,3]
[339350130,1727458249310,-600.0,0.00020899,3]
[339350133,1727458249320,-600.0,0.00020899,3]
[339350135,1727458249329,-600.0,0.00020899,3]
[339350136,1727458249339,-600.0,0.00020899,3]
[339350139,1727458249348,-600.0,0.00020899,3]
[339350141,1727458249359,-600.0,0.00020899,3]
[339350143,1727458249370,-600.0,0.00020899,3]
[339350145,1727458249379,-600.0,0.00020899,3]
[339350147,1727458249388,-600.0,0.00020899,3]
[339350149,1727458249398,-615.58,0.000209,2]
[339350151,1727458249407,-150.112237,0.000209,4]
[339350153,1727458249417,-172.1,0.00020902,2]
[339350155,1727458249427,-600.0,0.0002091,3]
[339350157,1727458249438,-600.0,0.0002091,3]
[339350159,1727458249448,-202.0,0.0002091,3]
[339350161,1727458249457,-1000.0,0.00020921,2]
[339350163,1727458249467,-1000.0,0.00020921,2]
[339350165,1727458249477,-1049.04192041,0.00020921,2]
[339350167,1727458249486,-500.0,0.00020921,2]
[339350169,1727458249496,-501.86122269,0.00020921,2]
[339350171,1727458249506,-1000.0,0.00020921,2]
[339350173,1727458249516,-1000.0,0.00020971,2]
[339350175,1727458249525,-181.0,0.0002099,2]
[339350178,1727458249535,-160.0,0.00020999,2]
[339350180,1727458249544,-160.0,0.00020999,2]
[339350182,1727458249554,-160.0,0.00020999,2]
[339350184,1727458249564,-22609.19084257,0.00021,5]
[339350186,1727458249573,-1674.0,0.00021,2]
[339350188,1727458249583,-1000.0,0.00021,21]
[339350190,1727458249593,-500.0,0.00021,30]
[339350192,1727458249602,-500.0,0.00021,30]
[339350194,1727458249611,-500.0,0.00021,30]
[339350196,1727458249622,-500.0,0.00021,30]
[339350198,1727458249631,-500.0,0.00021,30]
[339350199,1727458249641,-500.0,0.00021,30]
[339350201,1727458249650,-500.0,0.00021,30]
[339350203,1727458249659,-500.0,0.00021,30]
[339350205,1727458249669,-500.0,0.00021,30]
[339350207,1727458249678,-500.0,0.00021,30]
[339350209,1727458249687,-500.0,0.00021,30]
[339350211,1727458249696,-500.0,0.00021,30]
[339350213,1727458249705,-500.0,0.00021,30]
[339350215,1727458249714,-500.0,0.00021,30]
[339350217,1727458249724,-500.0,0.00021,30]
[339350219,1727458249733,-500.0,0.00021,30]
[339350221,1727458249742,-500.0,0.00021,30]
[339350224,1727458249752,-500.0,0.00021,30]
[339350225,1727458249761,-500.0,0.00021,30]
[339350228,1727458249771,-500.0,0.00021,30]
[339350230,1727458249780,-500.0,0.00021,30]
[339350232,1727458249790,-500.0,0.00021,30]
[339350234,1727458249799,-500.0,0.00021,30]
[339350236,1727458249808,-500.0,0.00021,30]
[339350238,1727458249817,-500.0,0.00021,30]
[339350240,1727458249826,-500.0,0.00021,30]
[339350242,1727458249835,-500.0,0.00021,30]
[339350244,1727458249844,-500.0,0.00021,30]
[339350246,1727458249853,-500.0,0.00021,30]
[339350247,1727458249862,-500.0,0.00021,30]
[339350250,1727458249874,-500.0,0.00021,30]
[339350251,1727458249883,-500.0,0.00021,30]
[339350254,1727458249892,-500.0,0.00021,30]
[339350256,1727458249902,-500.0,0.00021,30]
[339350258,1727458249911,-500.0,0.00021,30]
[339350260,1727458249923,-500.0,0.00021,30]
[339350262,1727458249933,-500.0,0.00021,30]
[339350264,1727458249942,-800.0,0.00021,30]
[339350266,1727458249952,-2017.80681912,0.00021,2]
[339350268,1727458249963,-500.0,0.00021,30]
[339350270,1727458249973,-879.63813938,0.00021,30]
[339350272,1727458249983,-500.0,0.00021,30]
[339350274,1727458249994,-500.0,0.00021,30]
[339350276,1727458250005,-500.0,0.00021,30]
[339350278,1727458250015,-734.20927279,0.00021,30]
[339350280,1727458250025,-500.0,0.00021,30]
[339350282,1727458250035,-500.0,0.00021,30]
[339350284,1727458250044,-510.77584455,0.00021,30]
[339350286,1727458250054,-500.0,0.00021,30]
[339350288,1727458250064,-500.0,0.00021,30]
[339350301,1727458250175,-500.0,0.00021,30]
[339350303,1727458250186,-500.0,0.00021,30]
[339350305,1727458250196,-500.0,0.00021,30]
[339350307,1727458250206,-787.37510182,0.00021,30]
[339350309,1727458250216,-500.0,0.00021,30]
[339350311,1727458250225,-500.0,0.00021,30]
[339350313,1727458250234,-500.0,0.00021,30]
[339350315,1727458250244,-500.0,0.00021,30]
[339350317,1727458250253,-500.0,0.00021,30]
[339350319,1727458250263,-500.0,0.00021,30]
[339350321,1727458250272,-500.0,0.00021,30]
[339350323,1727458250283,-500.0,0.00021,30]
[339350325,1727458250292,-500.0,0.00021,30]
[339350327,1727458250303,-500.0,0.00021,30]
[339350329,1727458250313,-500.0,0.00021,30]
[339350331,1727458250323,-500.0,0.00021,30]
[339350333,1727458250332,-500.0,0.00021,30]
[339350335,1727458250341,-500.0,0.00021,30]
[339350337,1727458250351,-705.87430767,0.00021,30]
[339350339,1727458250360,-500.0,0.00021,30]
[339350341,1727458250370,-531.02725656,0.00021,30]
[339350343,1727458250379,-2000.0,0.00021,5]
[339350345,1727458250389,-507.03160222,0.00021,30]
[339350347,1727458250398,-686.04385628,0.00021,30]
[339350349,1727458250409,-500.0,0.00021,30]
[339350351,1727458250418,-500.0,0.00021,30]
[339350353,1727458250428,-500.0,0.00021,30]
[339350355,1727458250437,-500.0,0.00021,30]
[339350357,1727458250447,-500.0,0.00021,30]
[339350359,1727458250457,-500.0,0.00021,30]
[339350361,1727458250466,-500.0,0.00021,30]
[339350362,1727458250476,-500.0,0.00021,30]
[339350364,1727458250485,-500.0,0.00021,30]
[339350367,1727458250495,-500.0,0.00021,30]
[339350369,1727458250505,-500.0,0.00021,30]
[339350371,1727458250515,-500.0,0.00021,30]
[339350372,1727458250524,-500.0,0.00021,30]
[339350374,1727458250533,-982.33375427,0.00021,30]
[339350376,1727458250542,-500.0,0.00021,30]
[339350378,1727458250552,-500.0,0.00021,30]
[339350380,1727458250562,-700.0,0.00021,30]
[339350382,1727458250572,-500.0,0.00021,30]
[339350384,1727458250582,-700.0,0.00021,30]
[339350386,1727458250592,-500.0,0.00021,30]
[339350388,1727458250602,-700.0,0.00021,30]
[339350390,1727458250612,-500.0,0.00021,30]
[339350391,1727458250630,-700.0,0.00021,30]
[339350392,1727458250641,-600.0,0.00021,30]
[339350393,1727458250651,-700.0,0.00021,30]
[339350394,1727458250660,-600.0,0.00021,30]
[339350395,1727458250669,-500.0,0.00021,30]